fUSD/lending_fUSD_20241202
["ID","MTS","AMOUNT","RATE_DAILY","PERIOD"]
[343971663,1733163336170,559.08,0.00025,120]
[343971664,1733163336434,2273.9,0.00025,120]
[343971665,1733163337634,26510.1,0.00025,120]
[343971666,1733163338012,973.89,0.00025,120]
[343971667,1733163338657,4254.31,0.00025,120]
[343971668,1733163338892,500.0,0.00025,120]
[343971669,1733163339231,314.62054968,0.00025,120]
[343971670,1733163339581,503.52,0.00025,120]
[343971671,1733163339683,1191.14,0.00025,120]
[343971672,1733163341335,500.0,0.00025,120]
[343971673,1733163341422,944.23,0.00025,120]
[343971674,1733163341477,271.64862977,0.00025,120]
[343971675,1733163342346,500.0,0.00025,120]
[343971676,1733163342437,1477.05,0.00025,120]
[343971677,1733163343809,7042.25,0.00025,120]
[343971678,1733163343872,1175.47,0.00025,120]
[343971679,1733163344364,500.0,0.00025,120]
[343971680,1733163344971,500.0,0.00025,120]
[343971681,1733163345036,500.0,0.00025,120]
[343971682,1733163345854,3086.84,0.00025,120]
[343971683,1733163345916,870.88,0.00025,120]
[343971684,1733163346477,973.89,0.00025,120]
[343971685,1733163346551,710.04,0.00025,120]
[343971686,1733163346914,314.544772,0.00025,120]
[343971688,1733163347412,9461.93,0.00025,120]
[343971689,1733163348830,3017.3,0.00025,120]
[343971690,1733163348998,500.0,0.00025,120]
[343971691,1733163349069,3126.29,0.00025,120]
[343971693,1733163349706,500.0,0.00025,120]
[343971694,1733163349793,500.0,0.00025,120]
[343971695,1733163350053,500.0,0.00025,120]
[343971696,1733163350243,2648.11,0.00025,120]
[343971698,1733163351242,500.0,0.00025,120]
[343971699,1733163351335,1806.28,0.00025,120]
[343971700,1733163352053,313.7808919,0.00025,120]
[343971701,1733163352281,1679.56,0.00025,120]
[343971702,1733163353741,2195.13,0.00025,120]
[343971703,1733163354005,500.0,0.00025,120]
[343971704,1733163354319,637.0242533,0.00025,120]
[343971705,1733163354600,973.89,0.00025,120]
[343971706,1733163354756,994.72,0.00025,120]
[343971707,1733163355955,2734.72,0.00025,120]
[343971708,1733163356396,206.43976149,0.00025,120]
[343971709,1733163357086,6011.1,0.00025,120]
[343971710,1733163358023,1452.6,0.00025,120]
[343971711,1733163358298,411.17561179,0.00025,120]
[343971712,1733163358381,500.0,0.00025,120]
[343971713,1733163358481,314.39059517,0.00025,120]
[343971714,1733163358832,500.0,0.00025,120]
[343971715,1733163359779,500.0,0.00025,120]
[343971716,1733163360378,500.0,0.00025,120]
[343971717,1733163360452,1513.9,0.00025,120]
[343971718,1733163360765,500.0,0.00025,120]
[343971719,1733163361516,973.89,0.00025,120]
[343971720,1733163362399,1177.62,0.00025,120]
[343971721,1733163362951,735.41,0.00025,120]
[343971722,1733163364494,877.55,0.00025,120]
[343971723,1733163365001,500.0,0.00025,120]
[343971724,1733163365754,500.0,0.00025,120]
[343971725,1733163366026,25431.1,0.00025,120]
[343971726,1733163366624,520.0258572,0.00025,120]
[343971727,1733163367628,500.0,0.00025,120]
[343971728,1733163367693,5662.87,0.00025,120]
[343971729,1733163367762,1011.39,0.00025,120]
[343971730,1733163368529,973.89,0.00025,120]
[343971731,1733163369015,3033.2,0.00025,120]
[343971732,1733163371566,500.0,0.00025,120]
[343971733,1733163371796,878.92,0.00025,120]
[343971734,1733163372168,2472.0,0.00025,120]
[343971735,1733163372274,500.0,0.00025,120]
[343971736,1733163372520,500.0,0.00025,120]
[343971737,1733163372911,500.0,0.00025,120]
[343971738,1733163376156,2938.61,0.00025,120]
[343971739,1733163376275,3086.58,0.00025,120]
[343971740,1733163377383,500.0,0.00025,120]
[343971741,1733163377463,500.0,0.00025,120]
[343971742,1733163377559,624.05204681,0.00025,120]
[343971743,1733163377798,523.28,0.00025,120]
[343971744,1733163378100,608.58,0.00025,120]
[343971745,1733163378281,500.0,0.00025,120]
[343971746,1733163379095,973.89,0.00025,120]
[343971747,1733163379313,500.0,0.00025,120]
[343971748,1733163379470,500.0,0.00025,120]
[343971749,1733163379542,500.0,0.00025,120]
[343971750,1733163379873,1105.0,0.00025,120]
[343971751,1733163380578,1867.32,0.00025,120]
[343971752,1733163380801,500.0,0.00025,120]
[343971753,1733163380860,1888.35,0.00025,120]
[343971754,1733163380981,500.0,0.00025,120]
[343971755,1733163381299,2889.24,0.00025,120]
[343971756,1733163382205,568.92,0.00025,120]
[343971757,1733163383651,651.03,0.00025,120]
[343971758,1733163385167,7242.52,0.00025,120]
[343971759,1733163385574,8060.43,0.00025,120]
[343971760,1733163387984,500.0,0.00025,120]
[343971761,1733163388075,1942.74,0.00025,120]
[343971762,1733163388169,500.0,0.00025,120]
[343971763,1733163388343,500.0,0.00025,120]
[343971764,1733163388573,1964.73,0.00025,120]
[343971765,1733163389001,500.0,0.00025,120]
[343971766,1733163389292,1376.48,0.00025,120]
[343971767,1733163389938,5950.74,0.00025,120]
[343971768,1733163390075,645.12,0.00025,120]
[343971769,1733163390135,2818.7,0.00025,120]
[343971770,1733163390641,500.0,0.00025,120]
[343971771,1733163390886,500.0,0.00025,120]
[343971772,1733163390989,948.1,0.00025,120]
[343971773,1733163391143,925.89,0.00025,120]
[343971774,1733163391385,3026.62,0.00025,120]
[343971775,1733163391786,17527.84,0.00025,120]
[343971776,1733163391959,3218.95,0.00025,120]
[343971777,1733163392555,2207.05,0.00025,120]
[343971778,1733163392724,500.0,0.00025,120]
[343971779,1733163393347,9566.18,0.00025,120]
[343971780,1733163395054,973.89,0.00025,120]
[343971781,1733163395648,3838.21,0.00025,120]
[343971782,1733163398418,500.0,0.00025,120]
[343971783,1733163398816,500.0,0.00025,120]
[343971784,1733163399076,500.0,0.00025,120]
[343971785,1733163399215,500.0,0.00025,120]
[343971786,1733163399417,1147.58,0.00025,120]
[343971787,1733163399710,1355.4,0.00025,120]
[343971788,1733163400032,700.92,0.00025,120]
[343971789,1733163400673,500.0,0.00025,120]
[343971790,1733163400900,500.0,0.00025,120]
[343971791,1733163401275,727.11,0.00025,120]
[343971792,1733163401510,6974.18,0.00025,120]
[343971793,1733163401626,1525.33,0.00025,120]
[343971794,1733163402100,725.81,0.00025,120]
[343971795,1733163402208,973.17,0.00025,120]
[343971796,1733163402648,628.77,0.00025,120]
[343971797,1733163403550,877.91,0.00025,120]
[343971798,1733163404098,9721.07,0.00025,120]
[343971799,1733163406438,500.0,0.00025,120]
[343971800,1733163406642,1134.8,0.00025,120]
[343971801,1733163407164,1061.81,0.00025,120]
[343971802,1733163407382,740.7,0.00025,120]
[343971803,1733163407516,500.0,0.00025,120]
[343971804,1733163409957,2552.17,0.00025,120]
[343971805,1733163410497,510.88230031,0.00025,120]
[343971806,1733163410794,500.0,0.00025,120]
[343971807,1733163410865,6420.22,0.00025,120]
[343971808,1733163410952,500.0,0.00025,120]
[343971809,1733163411774,627.81,0.00025,120]
[343971810,1733163411935,500.0,0.00025,120]
[343971811,1733163412299,500.0,0.00025,120]
[343971812,1733163412654,2371.1,0.00025,120]
[343971813,1733163412912,7097.79,0.00025,120]
[343971814,1733163413294,1796.59,0.00025,120]
[343971815,1733163413416,5440.38,0.00025,120]
[343971816,1733163413480,903.02,0.00025,120]
[343971817,1733163415180,713.56,0.00025,120]
[343971818,1733163415505,2516.67,0.00025,120]
[343971819,1733163416713,500.0,0.00025,120]
[343971820,1733163416850,2083.26,0.00025,120]
[343971821,1733163416934,2702.53,0.00025,120]
[343971822,1733163417324,2739.8,0.00025,120]
[343971823,1733163418088,570.17,0.00025,120]
[343971824,1733163419878,335.24372625,0.00025,120]
[343971825,1733163420113,6968.29,0.00025,120]
[343971826,1733163421532,500.0,0.00025,120]
[343971827,1733163421723,500.0,0.00025,120]
[343971828,1733163422198,2929.05,0.00025,120]
[343971829,1733163422583,500.0,0.00025,120]
[343971830,1733163422688,500.0,0.00025,120]
[343971831,1733163422868,4168.53,0.00025,120]
[343971832,1733163423482,628.89,0.00025,120]
[343971833,1733163423809,962.28,0.00025,120]
[343971834,1733163423997,3531.08,0.00025,120]
[343971835,1733163424227,500.0,0.00025,120]
[343971836,1733163424303,2552.87,0.00025,120]
[343971837,1733163424367,973.89,0.00025,120]
[343971838,1733163424648,500.0,0.00025,120]
[343971839,1733163424713,3263.96,0.00025,120]
[343971840,1733163425394,500.0,0.00025,120]
[343971841,1733163425995,500.0,0.00025,120]
[343971842,1733163426309,6429.5,0.00025,120]
[343971843,1733163426545,1255.21,0.00025,120]
[343971844,1733163427127,1176.34,0.00025,120]
[343971845,1733163427762,500.0,0.00025,120]
[343971846,1733163427916,500.0,0.00025,120]
[343971847,1733163429145,17666.66,0.00025,120]
[343971848,1733163430955,500.0,0.00025,120]
[343971849,1733163431010,500.0,0.00025,120]
[343971850,1733163431123,9003.05,0.00025,120]
[343971851,1733163431823,973.89,0.00025,120]
[343971852,1733163432280,1999.27,0.00025,120]
[343971853,1733163432341,1018.05,0.00025,120]
[343971854,1733163433440,500.0,0.00025,120]
[343971855,1733163433507,500.0,0.00025,120]
[343971856,1733163433782,2696.07,0.00025,120]
[343971857,1733163433907,3623.17,0.00025,120]
[343971858,1733163435014,500.0,0.00025,120]
[343971859,1733163435855,12618.8,0.00025,120]
[343971860,1733163436043,500.0,0.00025,120]
[343971861,1733163436142,500.0,0.00025,120]
[343971862,1733163436643,627.7,0.00025,120]
[343971863,1733163436718,2624.33,0.00025,120]
[343971864,1733163436775,500.0,0.00025,120]
[343971865,1733163437224,1047.14,0.00025,120]
[343971866,1733163437983,973.89,0.00025,120]
[343971867,1733163438436,2696.13,0.00025,120]
[343971868,1733163439164,500.0,0.00025,120]
[343971869,1733163439675,781.43,0.00025,120]
[343971870,1733163439822,521.3,0.00025,120]
[343971871,1733163440301,500.0,0.00025,120]
[343971872,1733163440408,42708.54,0.00025,120]
[343971873,1733163441956,4273.1,0.00025,120]
[343971874,1733163443270,500.0,0.00025,120]
[343971875,1733163443326,11473.37,0.00025,120]
[343971876,1733163443382,4754.75,0.00025,120]
[343971877,1733163443576,2359.3,0.00025,120]
[343971878,1733163443658,500.0,0.00025,120]
[343971879,1733163444551,500.0,0.00025,120]
[343971880,1733163444629,1421.38,0.00025,120]
[343971881,1733163445184,2306.05,0.00025,120]
[343971882,1733163445679,500.0,0.00025,120]
[343971883,1733163447528,624.41,0.00025,120]
[343971884,1733163447616,500.0,0.00025,120]
[343971885,1733163448061,946.87,0.00025,120]
[343971886,1733163449647,500.0,0.00025,120]
[343971887,1733163451106,4570.66,0.00025,120]
[343971888,1733163451431,3403.89,0.00025,120]
[343971889,1733163451487,2221.78,0.00025,120]
[343971890,1733163452694,3449.35,0.00025,120]
[343971891,1733163452759,500.0,0.00025,120]
[343971892,1733163453052,500.0,0.00025,120]
[343971893,1733163453392,502.13,0.00025,120]
[343971894,1733163454134,500.0,0.00025,120]
[343971895,1733163454454,500.0,0.00025,120]
[343971896,1733163454544,13190.56,0.00025,120]
[343971897,1733163454603,1093.01,0.00025,120]
[343971898,1733163454719,5701.17,0.00025,120]
[343971899,1733163454952,3052.82,0.00025,120]
[343971900,1733163455217,973.89,0.00025,120]
[343971901,1733163455636,500.0,0.00025,120]
[343971902,1733163455803,2536.19,0.00025,120]
[343971903,1733163456308,1103.13,0.00025,120]
[343971904,1733163456392,500.0,0.00025,120]
[343971905,1733163456470,628.47,0.00025,120]
[343971906,1733163456603,2950.02,0.00025,120]
[343971907,1733163456781,500.0,0.00025,120]
[343971908,1733163459439,2435.71,0.00025,120]
[343971909,1733163460162,500.0,0.00025,120]
[343971910,1733163460997,618.34,0.00025,120]
[343971911,1733163461057,523.53,0.00025,120]
[343971912,1733163461522,973.89,0.00025,120]
[343971913,1733163462234,7116.36,0.00025,120]
[343971914,1733163464742,500.0,0.00025,120]
[343971915,1733163464951,500.0,0.00025,120]
[343971916,1733163465416,606.77,0.00025,120]
[343971917,1733163465476,3763.59,0.00025,120]
[343971918,1733163465551,1461.74,0.00025,120]
[343971919,1733163465616,931.88,0.00025,120]
[343971920,1733163465730,4663.72,0.00025,120]
[343971921,1733163466231,500.0,0.00025,120]
[343971922,1733163466811,773.38,0.00025,120]
[343971923,1733163466887,526.72653881,0.00025,120]
[343971924,1733163467101,500.0,0.00025,120]
[343971925,1733163467172,512.56015222,0.00025,120]
[343971926,1733163467881,4143.4,0.00025,120]
[343971927,1733163468584,500.0,0.00025,120]
[343971928,1733163468676,1861.9,0.00025,120]
[343971929,1733163469358,500.0,0.00025,120]
[343971930,1733163469432,972.75,0.00025,120]
[343971931,1733163469491,7179.47,0.00025,120]
[343971932,1733163469746,500.0,0.00025,120]
[343971933,1733163469803,4126.05,0.00025,120]
[343971934,1733163470427,22996.36,0.00025,120]
[343971935,1733163470602,500.0,0.00025,120]
[343971936,1733163471482,504.21375773,0.00025,120]
[343971937,1733163472769,500.0,0.00025,120]
[343971938,1733163473039,500.0,0.00025,120]
[343971939,1733163473492,500.0,0.00025,120]
[343971940,1733163475247,500.0,0.00025,120]
[343971941,1733163475427,500.0,0.00025,120]
[343971942,1733163476154,502.07,0.00025,120]
[343971943,1733163476430,4907.9,0.00025,120]
[343971944,1733163476551,600.35952858,0.00025,120]
[343971945,1733163477651,500.0,0.00025,120]
[343971946,1733163477707,500.0,0.00025,120]
[343971947,1733163477763,984.18,0.00025,120]
[343971948,1733163477854,973.53,0.00025,120]
[343971949,1733163477938,8434.91,0.00025,120]
[343971950,1733163478418,500.0,0.00025,120]
[343971951,1733163480931,538.7,0.00025,120]
[343971952,1733163481094,983.38,0.00025,120]
[343971953,1733163481163,500.0,0.00025,120]
[343971954,1733163481449,411.40052985,0.00025,120]
[343971955,1733163481563,500.0,0.00025,120]
[343971956,1733163482069,3051.14,0.00025,120]
[343971957,1733163482227,821.22,0.00025,120]
[343971958,1733163482931,3298.84,0.00025,120]
[343971959,1733163483178,500.0,0.00025,120]
[343971960,1733163483410,1069.64,0.00025,120]
[343971961,1733163484251,582.62159628,0.00025,120]
[343971962,1733163485922,32197.74,0.00025,120]
[343971963,1733163487805,4489.71,0.00025,120]
[343971964,1733163488102,500.0,0.00025,120]
[343971965,1733163488191,500.0,0.00025,120]
[343971966,1733163489009,5267.31,0.00025,120]
[343971967,1733163489897,721.85,0.00025,120]
[343971968,1733163489965,500.0,0.00025,120]
[343971969,1733163490350,536.44,0.00025,120]
[343971970,1733163491227,1408.51,0.00025,120]
[343971971,1733163491591,500.0,0.00025,120]
[343971972,1733163491665,734.25,0.00025,120]
[343971973,1733163491983,500.0,0.00025,120]
[343971974,1733163493583,500.0,0.00025,120]
[343971975,1733163494045,500.0,0.00025,120]
[343971976,1733163494427,3923.15,0.00025,120]
[343971977,1733163494974,2467.1,0.00025,120]
[343971978,1733163495680,3758.62,0.00025,120]
[343971979,1733163496970,500.0,0.00025,120]
[343971980,1733163497025,500.0,0.00025,120]
[343971981,1733163497285,5344.84,0.00025,120]
[343971982,1733163497347,500.0,0.00025,120]
[343971983,1733163498269,1140.41,0.00025,120]
[343971984,1733163499073,500.0,0.00025,120]
[343971985,1733163499225,503.1313365,0.00025,120]
[343971986,1733163499449,1747.41,0.00025,120]
[343971987,1733163499771,517.62,0.00025,120]
[343971988,1733163499888,1495.36,0.00025,120]
[343971989,1733163500695,768.34,0.00025,120]
[343971990,1733163500937,4361.26,0.00025,120]
[343971991,1733163501518,878.42,0.00025,120]
[343971992,1733163501623,500.0,0.00025,120]
[343971993,1733163502519,798.35,0.00025,120]
[343971994,1733163502783,4828.9,0.00025,120]
[343971995,1733163503793,2001.42,0.00025,120]
[343971996,1733163504565,528.40378986,0.00025,120]
[343971997,1733163505968,3092.32,0.00025,120]
[343971998,1733163506090,500.0,0.00025,120]
[343971999,1733163506674,500.0,0.00025,120]
[343972000,1733163506864,500.0,0.00025,120]
[343972001,1733163508813,772.75,0.00025,120]
[343972002,1733163508989,500.0,0.00025,120]
[343972003,1733163509109,517.92291341,0.00025,120]
[343972004,1733163509228,18447.76,0.00025,120]
[343972005,1733163509285,3269.48,0.00025,120]
[343972006,1733163509468,3848.85,0.00025,120]
[343972007,1733163509580,3112.32,0.00025,120]
[343972008,1733163509966,9226.51,0.00025,120]
[343972009,1733163510240,500.0,0.00025,120]
[343972010,1733163510415,500.0,0.00025,120]
[343972011,1733163511062,500.0,0.00025,120]
[343972012,1733163511504,3007.01,0.00025,120]
[343972013,1733163511808,1749.32,0.00025,120]
[343972014,1733163512851,500.0,0.00025,120]
[343972015,1733163513191,673.42,0.00025,120]
[343972016,1733163513638,500.0,0.00025,120]
[343972017,1733163515251,1037.43,0.00025,120]
[343972018,1733163516187,1102.36,0.00025,120]
[343972019,1733163516242,500.0,0.00025,120]
[343972020,1733163517168,1921.4,0.00025,120]
[343972021,1733163517759,3497.79,0.00025,120]
[343972022,1733163519195,2423.76,0.00025,120]
[343972023,1733163519261,1004.31,0.00025,120]
[343972024,1733163519646,1319.85,0.00025,120]
[343972025,1733163519792,500.0,0.00025,120]
[343972026,1733163520098,500.0,0.00025,120]
[343972027,1733163520397,500.0,0.00025,120]
[343972028,1733163521196,500.0,0.00025,120]
[343972029,1733163521433,676.58,0.00025,120]
[343972030,1733163521925,500.0,0.00025,120]
[343972031,1733163522168,500.0,0.00025,120]
[343972032,1733163523085,500.0,0.00025,120]
[343972033,1733163523783,7017.26,0.00025,120]
[343972034,1733163524309,515.84,0.00025,120]
[343972035,1733163524712,1567.56,0.00025,120]
[343972036,1733163526138,500.0,0.00025,120]
[343972037,1733163526979,3999.45,0.00025,120]
[343972038,1733163527396,509.73039681,0.00025,120]
[343972039,1733163527673,1909.55,0.00025,120]
[343972040,1733163528213,7971.67,0.00025,120]
[343972041,1733163528350,952.28,0.00025,120]
[343972042,1733163528410,500.0,0.00025,120]
[343972043,1733163528873,500.0,0.00025,120]
[343972044,1733163530286,500.0,0.00025,120]
[343972045,1733163530741,2179.15,0.00025,120]
[343972046,1733163530907,4953.76,0.00025,120]
[343972047,1733163531103,500.0,0.00025,120]
[343972048,1733163531172,503.81925854,0.00025,120]
[343972049,1733163531554,619.73,0.00025,120]
[343972050,1733163531921,500.0,0.00025,120]
[343972051,1733163533378,5025.88,0.00025,120]
[343972052,1733163533530,2444.51,0.00025,120]
[343972053,1733163534011,500.0,0.00025,120]
[343972054,1733163534387,3707.33,0.00025,120]
[343972055,1733163534591,500.0,0.00025,120]
[343972056,1733163535821,664.17,0.00025,120]
[343972057,1733163537021,3977.82,0.00025,120]
[343972058,1733163537362,409.53780233,0.00025,120]
[343972059,1733163538446,3194.78,0.00025,120]
[343972060,1733163538591,1467.27,0.00025,120]
[343972062,1733163539343,500.0,0.00025,120]
[343972064,1733163541411,2893.94,0.00025,120]
[343972065,1733163542055,500.0,0.00025,120]
[343972066,1733163542711,4708.39,0.00025,120]
[343972067,1733163542769,1308.41,0.00025,120]
[343972068,1733163542832,5630.53,0.00025,120]
[343972069,1733163543639,500.0,0.00025,120]
[343972070,1733163544190,941.54,0.00025,120]
[343972071,1733163544251,3823.22,0.00025,120]
[343972072,1733163544342,659.06,0.00025,120]
[343972073,1733163545200,500.0,0.00025,120]
[343972074,1733163545275,1562.05,0.00025,120]
[343972075,1733163547470,500.0,0.00025,120]
[343972076,1733163547575,1070.46,0.00025,120]
[343972077,1733163547643,4271.59,0.00025,120]
[343972078,1733163548808,500.0,0.00025,120]
[343972079,1733163548972,500.0,0.00025,120]
[343972080,1733163550024,500.0,0.00025,120]
[343972081,1733163550116,505.55050337,0.00025,120]
[343972082,1733163550644,3788.84,0.00025,120]
[343972083,1733163551130,500.0,0.00025,120]
[343972084,1733163552147,1811.16,0.00025,120]
[343972085,1733163553163,3741.29,0.00025,120]
[343972086,1733163553352,545.19,0.00025,120]
[343972087,1733163553995,500.0,0.00025,120]
[343972088,1733163554081,646.77,0.00025,120]
[343972089,1733163554200,500.0,0.00025,120]
[343972090,1733163554566,500.0,0.00025,120]
[343972091,1733163554726,1677.66,0.00025,120]
[343972092,1733163556281,2620.77,0.00025,120]
[343972093,1733163556495,6944.65,0.00025,120]
[343972094,1733163556763,1092.57,0.00025,120]
[343972095,1733163556908,254.343789,0.00025,120]
[343972096,1733163556964,500.0,0.00025,120]
[343972097,1733163558879,559.2381035,0.00025,120]
[343972098,1733163558959,500.0,0.00025,120]
[343972099,1733163559244,6153.69,0.00025,120]
[343972100,1733163559372,1079.43,0.00025,120]
[343972101,1733163559446,25405.51,0.00025,120]
[343972102,1733163560642,500.0,0.00025,120]
[343972103,1733163561251,536.85809222,0.00025,120]
[343972105,1733163563532,977.01,0.00025,120]
[343972106,1733163563735,500.0,0.00025,120]
[343972107,1733163563923,500.0,0.00025,120]
[343972108,1733163564051,500.0,0.00025,120]
[343972109,1733163564795,424.6486392,0.00025,120]
[343972110,1733163565475,1136.71,0.00025,120]
[343972111,1733163565598,1630.18,0.00025,120]
[343972112,1733163565690,500.0,0.00025,120]
[343972113,1733163565787,40853.85,0.00025,120]
[343972114,1733163565939,887.15,0.00025,120]
[343972115,1733163565995,3585.51,0.00025,120]
[343972116,1733163566194,500.0,0.00025,120]
[343972117,1733163567899,1057.52,0.00025,120]
[343972118,1733163568000,1224.04,0.00025,120]
[343972119,1733163568608,7722.98,0.00025,120]
[343972120,1733163568819,1076.52,0.00025,120]
[343972121,1733163569912,665.72,0.00025,120]
[343972122,1733163570047,2637.57,0.00025,120]
[343972123,1733163570222,623.91,0.00025,120]
[343972124,1733163570334,500.0,0.00025,120]
[343972125,1733163570389,507.02784682,0.00025,120]
[343972126,1733163570581,500.0,0.00025,120]
[343972127,1733163571304,2940.25,0.00025,120]
[343972128,1733163571503,27395.96,0.00025,120]
[343972129,1733163572196,1596.03,0.00025,120]
[343972131,1733163572534,500.0,0.00025,120]
[343972132,1733163576084,603.36,0.00025,120]
[343972133,1733163576276,2516.98,0.00025,120]
[343972134,1733163576465,2541.47,0.00025,120]
[343972135,1733163576666,10249.12,0.00025,120]
[343972136,1733163576735,500.0,0.00025,120]
[343972137,1733163576927,3886.98,0.00025,120]
[343972138,1733163577034,500.0,0.00025,120]
[343972139,1733163577719,789.98,0.00025,120]
[343972140,1733163577801,1067.22,0.00025,120]
[343972141,1733163577932,500.0,0.00025,120]
[343972142,1733163578624,9316.03,0.00025,120]
[343972143,1733163579250,500.0,0.00025,120]
[343972144,1733163580352,500.0,0.00025,120]
[343972145,1733163581177,500.0,0.00025,120]
[343972146,1733163581473,694.58,0.00025,120]
[343972147,1733163582190,500.0,0.00025,120]
[343972148,1733163582245,12744.05,0.00025,120]
[343972149,1733163582533,1113.1,0.00025,120]
[343972150,1733163584269,500.0,0.00025,120]
[343972151,1733163586011,3160.24,0.00025,120]
[343972152,1733163586077,3911.43,0.00025,120]
[343972153,1733163586212,1000.0,0.00025,120]
[343972154,1733163586894,2806.91,0.00025,120]
[343972155,1733163587069,13833.88,0.00025,120]
[343972156,1733163587382,1026.5,0.00025,120]
[343972157,1733163588018,1375.94,0.00025,120]
[343972158,1733163588291,713.78,0.00025,120]
[343972159,1733163588734,1469.13,0.00025,120]
[343972160,1733163588882,1035.62,0.00025,120]
[343972161,1733163589222,1112.49,0.00025,120]
[343972162,1733163589935,6325.63,0.00025,120]
[343972163,1733163590100,500.0,0.00025,120]
[343972164,1733163590431,500.0,0.00025,120]
[343972165,1733163593959,500.0,0.00025,120]
[343972166,1733163595286,500.0,0.00025,120]
[343972167,1733163595379,500.0,0.00025,120]
[343972168,1733163595485,1202.91,0.00025,120]
[343972169,1733163596770,500.0,0.00025,120]